fUST/lending_fUST_20250522
["ID","MTS","AMOUNT","RATE_DAILY","PERIOD"]
[361915741,1747888245713,-430.0,0.00024383,2]
[361915742,1747888245723,-461.43,0.00024383,2]
[361915743,1747888245734,-430.0,0.00024383,2]
[361915744,1747888245743,-1106.74,0.00024383,2]
[361915745,1747888245753,-1260.04,0.00024383,2]
[361915746,1747888245763,-1005.43528025,0.00024417,11]
[361915747,1747888245772,-1278.466182,0.000245,2]
[361915748,1747888245782,-151.0,0.000245,10]
[361915749,1747888245792,-1005.43528025,0.00024555,11]
[361915750,1747888245801,-430.0,0.00024657,2]
[361915751,1747888245811,-488.12,0.00024657,2]
[361915752,1747888245821,-430.0,0.00024657,2]
[361915753,1747888245832,-430.0,0.00024657,2]
[361915754,1747888245841,-495.59,0.00024657,2]
[361915755,1747888245851,-392.43178444,0.00024657,2]
[361915756,1747888246005,-292.7075,0.00023287,2]
[361915757,1747888246326,-430.0,0.00021917,2]
[361915758,1747888246336,-370.0,0.00023287,2]
[361915759,1747888246351,-1171.5625,0.00023287,2]
[361915760,1747888246360,-85.94864766,0.00023561,2]
[361915761,1747888246372,-1748.32135234,0.00023561,2]
[361915762,1747888246381,-1834.27,0.00023835,2]
[361915763,1747888246390,-1834.27,0.00024109,2]
[361915764,1747888246400,-1834.27,0.00024383,2]
[361915765,1747888246409,-37.56821556,0.00024657,2]
[361915766,1747888246418,-239.7,0.00024657,2]
[361915767,1747888246427,-1427.12,0.00024657,2]
[361915768,1747888246437,-430.0,0.00024657,2]
[361915769,1747888246446,-729.47,0.00024657,2]
[361915770,1747888246456,-430.0,0.00024657,2]
[361915771,1747888246465,-489.86,0.00024657,2]
[361915772,1747888246476,-1894.98,0.00024657,2]
[361915773,1747888246485,-430.0,0.00024657,2]
[361915774,1747888246495,-689.2,0.00024657,2]
[361915775,1747888246504,-637.5,0.00024657,2]
[361915777,1747888246513,-430.0,0.00024657,2]
[361915778,1747888246522,-461.43,0.00024657,2]
[361915779,1747888246532,-197.98,0.00024657,2]
[361915781,1747888246542,-1106.74,0.00024657,2]
[361915782,1747888246551,-1260.04,0.00024657,2]
[361915783,1747888246561,-1834.27,0.00024657,2]
[361915784,1747888246570,-500.0,0.00024658,2]
[361915785,1747888246579,-500.0,0.00024658,2]
[361915786,1747888246589,-500.0,0.00024658,2]
[361915787,1747888246599,-500.0,0.00024658,2]
[361915788,1747888246608,-500.0,0.00024658,2]
[361915789,1747888246617,-500.0,0.00024658,2]
[361915790,1747888246625,-500.0,0.00024658,2]
[361915791,1747888246634,-500.0,0.00024658,2]
[361915792,1747888246642,-500.0,0.00024658,2]
[361915793,1747888246651,-500.0,0.00024658,2]
[361915794,1747888246660,-500.0,0.00024658,2]
[361915797,1747888246785,-500.0,0.00024658,2]
[361915798,1747888246795,-500.0,0.00024658,2]
[361915799,1747888246804,-424.76207414,0.00024658,2]
[361915800,1747888246814,-500.0,0.00024658,2]
[361915801,1747888246823,-500.0,0.00024658,2]
[361915802,1747888246833,-500.0,0.00024658,2]
[361915803,1747888246842,-400.0,0.00024658,2]
[361915804,1747888246852,-500.0,0.00024658,2]
[361915805,1747888246861,-19200.34053132,0.0002466,7]
[361915806,1747888246871,-19200.34053132,0.0002466,7]
[361915807,1747888246880,-214523.73737337,0.0002469,2]
[361915808,1747888246890,-5722.14,0.000247,7]
[361915809,1747888246899,-15691.47,0.000247,2]
[361915810,1747888246908,-8657.99,0.000247,7]
[361915811,1747888246917,-151.0,0.000247,10]
[361915812,1747888246927,-1013.712,0.00024734,2]
[361915813,1747888246936,-2349.49941283,0.0002475,2]
[361915814,1747888246946,-957.34471804,0.00024756,2]
[361915815,1747888246955,-12853.5053806,0.00024774,2]
[361915816,1747888246965,-200.0,0.000248,2]
[361915817,1747888246975,-151.0,0.000248,5]
[361915818,1747888246985,-236.72334585,0.000248,2]
[361915819,1747888246994,-562.5183011,0.00024849,2]
[361915820,1747888247003,-500.0,0.00024873,2]
[361915821,1747888247012,-20040.95972293,0.000249,2]
[361915822,1747888247021,-10587.05748429,0.000249,3]
[361915823,1747888247030,-496.74409519,0.000249,2]
[361915824,1747888247043,-434897.83444,0.000249,2]
[361915825,1747888247053,-371.0,0.00024931,2]
[361915826,1747888247062,-488.12,0.00024931,2]
[361915827,1747888247071,-430.0,0.00024931,2]
[361915828,1747888247081,-430.0,0.00024931,2]
[361915829,1747888247090,-430.0,0.00024931,2]
[361915830,1747888247100,-1427.12,0.00024931,2]
[361915831,1747888247109,-430.0,0.00024931,2]
[361915832,1747888247120,-729.47,0.00024931,2]
[361915833,1747888247130,-430.0,0.00024931,2]
[361915834,1747888247140,-489.86,0.00024931,2]
[361915835,1747888247149,-1894.98,0.00024931,2]
[361915836,1747888247158,-430.0,0.00024931,2]
[361915837,1747888247166,-689.2,0.00024931,2]
[361915838,1747888247175,-637.5,0.00024931,2]
[361915839,1747888247183,-430.0,0.00024931,2]
[361915840,1747888247191,-461.43,0.00024931,2]
[361915841,1747888247199,-1106.74,0.00024931,2]
[361915842,1747888247209,-1260.04,0.00024931,2]
[361915843,1747888247217,-1834.27,0.00024931,2]
[361915844,1747888247227,-187.0,0.0002497,120]
[361915845,1747888247236,-500.0,0.00024973,2]
[361915846,1747888247246,-500.0,0.00024973,2]
[361915847,1747888247255,-600.0,0.00024973,2]
[361915848,1747888247264,-500.0,0.00024973,2]
[361915849,1747888247274,-500.0,0.00024973,2]
[361915850,1747888247284,-150.0,0.00024973,2]
[361915851,1747888247293,-500.0,0.00024973,2]
[361915852,1747888247303,-500.0,0.00024973,2]
[361915853,1747888247312,-187.0,0.0002498,120]
[361915854,1747888247321,-187.0,0.0002499,120]
[361915855,1747888247331,-312.25381352,0.00025,3]
[361915856,1747888247341,-1198775.97683123,0.00025,20]
[361915857,1747888247351,-16172.96805205,0.00025,2]
[361915858,1747888247360,-46722.03357051,0.00025,5]
[361915859,1747888247369,-8894.14549336,0.00025,30]
[361915860,1747888247379,-15000.0,0.00025,3]
[361915861,1747888247388,-500.0,0.00025,15]
[361915862,1747888247397,-10005.71,0.00025,15]
[361915863,1747888247407,-104096.83793752,0.00025,30]
[361915864,1747888247416,-50982.7007484,0.00025,7]
[361915865,1747888247426,-17200.0,0.00025,4]
[361915866,1747888247435,-4600000.0,0.00025,5]
[361915867,1747888247445,-11036.99999999,0.00025,30]
[361915868,1747888247454,-560.0,0.00025,2]
[361915869,1747888247464,-533.0,0.00025,2]
[361915870,1747888247473,-146117.19974302,0.00025,7]
[361915871,1747888247560,-363.6506951,0.00023096,2]
[361915872,1747888247570,-2243.875,0.00024425,2]
[361915873,1747888247580,-2676.71987511,0.00025,7]
[361915902,1747888848735,160.082905,0.00013699,2]
[361915905,1747889027754,-250.0,0.00021191,2]
[361915906,1747889027779,-766.3028924,0.00021281,2]
[361915907,1747889027805,-221.4085491,0.00021731,2]
[361915908,1747889027830,-300.0,0.00021915,2]
[361915909,1747889027856,-500.0,0.00021916,2]
[361915910,1747889027881,-462.2885585,0.00021916,2]
[361915914,1747889231141,-2318.72405473,0.00021697,2]
[361915915,1747889239077,-2681.27594527,0.00021697,2]
[361915916,1747889239099,-300.0,0.00021915,2]
[361915917,1747889239122,-300.0,0.00021915,2]
[361915918,1747889239146,-37.7114415,0.00021916,2]
[361915919,1747889239170,-500.0,0.00021916,2]
[361915920,1747889239195,-218.04107146,0.00021916,2]
[361915921,1747889239218,-233.62527413,0.00021916,2]
[361915922,1747889239241,-586.56225722,0.00021916,2]
[361915923,1747889239263,-300.0,0.00021916,2]
[361915924,1747889239285,-108.76453128,0.00021916,2]
[361915925,1747889242151,-191.23546872,0.00021916,2]
[361915926,1747889242174,-300.0,0.00021916,2]
[361915927,1747889242200,-500.0,0.00021916,2]
[361915928,1747889242226,-328.3544499,0.00021916,2]
[361915929,1747889242252,-500.0,0.00021916,2]
[361915930,1747889242272,-470.58938848,0.00021916,2]
[361915931,1747889242294,-430.0,0.00021917,2]
[361915932,1747889242316,-430.0,0.00021917,2]
[361915933,1747889242338,-516.32,0.00021917,2]
[361915934,1747889242359,-430.0,0.00021917,2]
[361915935,1747889242382,-430.0,0.00021917,2]
[361915936,1747889242405,-295.34527231,0.00021917,2]
[361915937,1747889242427,-430.0,0.00021917,2]
[361915938,1747889242450,-430.0,0.00021917,2]
[361915939,1747889242476,-430.0,0.00021917,2]
[361915940,1747889242497,-430.0,0.00021917,2]
[361915941,1747889242518,-430.0,0.00021917,2]
[361915942,1747889242540,-430.0,0.00021917,2]
[361915943,1747889242563,-430.0,0.00021917,2]
[361915944,1747889242584,-430.0,0.00021917,2]
[361915945,1747889242605,-430.0,0.00021917,2]
[361915946,1747889242627,-16.16885216,0.00021917,2]
[361916015,1747889359518,-216.65108123,0.00019817,2]
[361916160,1747889419619,-150.0,0.00019817,2]
[361916178,1747889432180,-346.885107,0.0002108,2]
[361916179,1747889432190,-500.0,0.00021916,2]
[361916180,1747889432201,-500.0,0.00021916,2]
[361916181,1747889432211,-359.76446817,0.00021916,2]
[361916182,1747889432220,-206.30052262,0.00021916,2]
[361916183,1747889432230,-300.0,0.00021916,2]
[361916184,1747889432240,-300.0,0.00021916,2]
[361916185,1747889432250,-300.0,0.00021916,2]
[361916187,1747889432260,-158.25,0.00021917,2]
[361916189,1747889432271,-430.0,0.00021917,2]
[361916191,1747889432280,-430.0,0.00021917,2]
[361916192,1747889432290,-430.0,0.00021917,2]
[361916193,1747889432300,-430.0,0.00021917,2]
[361916194,1747889432310,-430.0,0.00021917,2]
[361916195,1747889432321,-430.0,0.00021917,2]
[361916196,1747889432331,-430.0,0.00021917,2]
[361916197,1747889432341,-96.80826302,0.00021917,2]
[361916198,1747889432357,-333.19173698,0.00021917,2]
[361916199,1747889432367,-148.65395325,0.00021917,2]
[361916200,1747889432385,-281.34604675,0.00021917,2]
[361916201,1747889432394,-324.10395325,0.00021917,2]
[361916202,1747889432410,-105.89604675,0.00021917,2]
[361916204,1747889432420,-279.93729033,0.00021917,2]
[361916219,1747889438172,-500.0,0.00021916,2]
[361916220,1747889438182,-500.0,0.00021916,2]
[361916221,1747889438191,-615.51791196,0.00021916,2]
[361916223,1747889438200,-500.0,0.00021916,2]
[361916224,1747889438210,-260.58207804,0.00021916,2]
[361916225,1747889438222,-215.24438535,0.00021916,2]
[361916227,1747889438243,-500.0,0.00021916,2]
[361916229,1747889438255,-430.0,0.00021917,2]
[361916230,1747889438266,-16.05561465,0.00021917,2]
[361916231,1747889438279,-413.94438535,0.00021917,2]
[361916232,1747889438290,-430.0,0.00021917,2]
[361916235,1747889438299,-430.0,0.00021917,2]
[361916237,1747889438310,-430.0,0.00021917,2]
[361916238,1747889438321,-430.0,0.00021917,2]
[361916239,1747889438331,-430.0,0.00021917,2]
[361916241,1747889438341,-430.0,0.00021917,2]
[361916242,1747889438351,-430.0,0.00021917,2]
[361916243,1747889438361,-430.0,0.00021917,2]
[361916245,1747889438371,-430.0,0.00021917,2]
[361916247,1747889438381,-430.0,0.00021917,2]
[361916249,1747889438392,-430.0,0.00021917,2]
[361916251,1747889438402,-187.82564367,0.00021917,2]
[361916253,1747889438411,-430.0,0.00021917,2]
[361916255,1747889438421,-430.0,0.00021917,2]
[361916257,1747889438431,-430.0,0.00021917,2]
[361916259,1747889438442,-315.19481354,0.00021917,2]
[361916261,1747889438452,-430.0,0.00021917,2]
[361916263,1747889438462,-430.0,0.00021917,2]
[361916265,1747889438476,-430.0,0.00021917,2]
[361916267,1747889438486,-430.0,0.00021917,2]
[361916269,1747889438496,-430.0,0.00021917,2]
[361916271,1747889438506,-430.0,0.00021917,2]
[361916274,1747889438517,-514.58,0.00021917,2]
[361916276,1747889438527,-430.0,0.00021917,2]
[361916278,1747889438537,-430.0,0.00021917,2]
[361916280,1747889438547,-430.0,0.00021917,2]
[361916282,1747889438557,-430.0,0.00021917,2]
[361916284,1747889438567,-430.0,0.00021917,2]
[361916286,1747889438578,-430.0,0.00021917,2]
[361916287,1747889438588,-556.65764968,0.00021917,2]
[361916289,1747889438598,-424.94675797,0.00021917,2]
[361916291,1747889438608,-430.0,0.00021917,2]
[361916293,1747889438617,-430.0,0.00021917,2]
[361916296,1747889438627,-430.0,0.00021917,2]
[361916298,1747889438637,-430.0,0.00021917,2]
[361916300,1747889438647,-430.0,0.00021917,2]
[361916301,1747889438656,-430.0,0.00021917,2]
[361916304,1747889438666,-430.0,0.00021917,2]
[361916306,1747889438676,-430.0,0.00021917,2]
[361916308,1747889438686,-430.0,0.00021917,2]
[361916310,1747889438696,-510.58,0.00021917,2]
[361916312,1747889438706,-430.0,0.00021917,2]
[361916314,1747889438718,-430.0,0.00021917,2]
[361916315,1747889438727,-430.0,0.00021917,2]
[361916316,1747889438737,-430.0,0.00021917,2]
[361916317,1747889438746,-367.46764265,0.00021917,2]
[361916318,1747889438756,-430.0,0.00021917,2]
[361916320,1747889438767,-430.0,0.00021917,2]
[361916321,1747889438777,-430.0,0.00021917,2]
[361916322,1747889438787,-430.0,0.00021917,2]
[361916323,1747889438797,-430.0,0.00021917,2]
[361916324,1747889438807,-430.0,0.00021917,2]
[361916325,1747889438817,-430.0,0.00021917,2]
[361916326,1747889438827,-430.0,0.00021917,2]
[361916327,1747889438838,-430.0,0.00021917,2]
[361916328,1747889438854,-430.0,0.00021917,2]
[361916329,1747889438864,-430.0,0.00021917,2]
[361916330,1747889438874,-430.0,0.00021917,2]
[361916331,1747889438884,-430.0,0.00021917,2]
[361916332,1747889438894,-430.0,0.00021917,2]
[361916333,1747889438904,-430.0,0.00021917,2]
[361916334,1747889438914,-430.0,0.00021917,2]
[361916335,1747889438924,-18436.43,0.00021917,2]
[361916336,1747889438937,-1264.28,0.00021917,2]
[361916337,1747889438947,-430.0,0.00021917,2]
[361916338,1747889438957,-1172.25,0.00021917,2]
[361916339,1747889438967,-430.0,0.00021917,2]
[361916340,1747889438976,-430.0,0.00021917,2]
[361916341,1747889438986,-430.0,0.00021917,2]
[361916342,1747889438995,-430.0,0.00021917,2]
[361916343,1747889439006,-430.0,0.00021917,2]
[361916344,1747889439016,-430.0,0.00021917,2]
[361916345,1747889439026,-200.0,0.00021917,2]
[361916346,1747889439036,-430.0,0.00021917,2]
[361916347,1747889439048,-430.0,0.00021917,2]
[361916348,1747889439057,-266.68775798,0.00021917,2]
[361916349,1747889439069,-430.0,0.00021917,2]
[361916350,1747889439079,-581.06,0.00021917,2]
[361916351,1747889439089,-430.0,0.00021917,2]
[361916352,1747889439099,-430.0,0.00021917,2]
[361916353,1747889439110,-430.0,0.00021917,2]
[361916354,1747889439120,-430.0,0.00021917,2]
[361916355,1747889439130,-430.0,0.00021917,2]
[361916356,1747889439140,-1388.96,0.00021917,2]
[361916357,1747889439151,-430.0,0.00021917,2]
[361916358,1747889439161,-430.0,0.00021917,2]
[361916359,1747889439170,-430.0,0.00021917,2]
[361916360,1747889439181,-430.0,0.00021917,2]
[361916361,1747889439190,-430.0,0.00021917,2]
[361916362,1747889439201,-430.0,0.00021917,2]
[361916363,1747889439211,-430.0,0.00021917,2]
[361916364,1747889439221,-430.0,0.00021917,2]
[361916365,1747889439230,-430.0,0.00021917,2]
[361916366,1747889439240,-764.64,0.00021917,2]
[361916367,1747889439249,-430.0,0.00021917,2]
[361916368,1747889439259,-430.0,0.00021917,2]
[361916369,1747889439269,-430.0,0.00021917,2]
[361916370,1747889439279,-430.0,0.00021917,2]
[361916371,1747889439288,-430.0,0.00021917,2]
[361916372,1747889439297,-430.0,0.00021917,2]
[361916373,1747889439307,-430.0,0.00021917,2]
[361916374,1747889439318,-430.0,0.00021917,2]
[361916375,1747889439328,-430.0,0.00021917,2]
[361916376,1747889439338,-430.0,0.00021917,2]
[361916377,1747889439348,-591.15,0.00021917,2]
[361916378,1747889439358,-430.0,0.00021917,2]
[361916379,1747889439368,-430.0,0.00021917,2]
[361916380,1747889439377,-197.70806257,0.00021917,2]
[361916381,1747889439387,-430.0,0.00021917,2]
[361916382,1747889439396,-430.0,0.00021917,2]
[361916383,1747889439407,-2232.82,0.00021917,2]
[361916384,1747889439416,-440.73,0.00021917,2]
[361916385,1747889439426,-430.0,0.00021917,2]
[361916386,1747889439436,-430.0,0.00021917,2]
[361916387,1747889439446,-430.0,0.00021917,2]
[361916388,1747889439456,-430.0,0.00021917,2]
[361916389,1747889439471,-430.0,0.00021917,2]
[361916390,1747889439481,-430.0,0.00021917,2]
[361916391,1747889439491,-430.0,0.00021917,2]
[361916392,1747889439501,-430.0,0.00021917,2]
[361916393,1747889439511,-430.0,0.00021917,2]
[361916394,1747889439521,-441.60344663,0.00021917,2]
[361916395,1747889439531,-430.0,0.00021917,2]
[361916396,1747889439541,-430.0,0.00021917,2]
[361916397,1747889439551,-430.0,0.00021917,2]
[361916398,1747889439562,-430.0,0.00021917,2]
[361916399,1747889439573,-430.0,0.00021917,2]
[361916400,1747889439583,-430.0,0.00021917,2]
[361916401,1747889439592,-430.0,0.00021917,2]
[361916402,1747889439602,-430.0,0.00021917,2]
[361916403,1747889439613,-430.0,0.00021917,2]
[361916404,1747889439623,-430.0,0.00021917,2]
[361916405,1747889439633,-430.0,0.00021917,2]
[361916406,1747889439642,-430.0,0.00021917,2]
[361916407,1747889439652,-430.0,0.00021917,2]
[361916408,1747889439663,-430.0,0.00021917,2]
[361916409,1747889439673,-430.0,0.00021917,2]
[361916410,1747889439683,-430.0,0.00021917,2]
[361916411,1747889439693,-430.0,0.00021917,2]
[361916412,1747889439703,-430.0,0.00021917,2]
[361916413,1747889439712,-430.0,0.00021917,2]
[361916414,1747889439722,-501.19736425,0.00021917,2]
[361916415,1747889439732,-430.0,0.00021917,2]
[361916416,1747889439742,-500.0,0.00021917,2]
[361916417,1747889439752,-557.2,0.00021917,2]
[361916418,1747889439762,-430.0,0.00021917,2]
[361916419,1747889439772,-430.0,0.00021917,2]
[361916420,1747889439782,-430.0,0.00021917,2]
[361916421,1747889439792,-430.0,0.00021917,2]
[361916422,1747889439803,-430.0,0.00021917,2]
[361916423,1747889439813,-430.0,0.00021917,2]
[361916424,1747889439967,-430.0,0.00021917,2]
[361916425,1747889439978,-430.0,0.00021917,2]
[361916426,1747889439988,-430.0,0.00021917,2]
[361916427,1747889439998,-430.0,0.00021917,2]
[361916428,1747889440007,-430.0,0.00021917,2]
[361916429,1747889440018,-430.0,0.00021917,2]
[361916430,1747889440028,-430.0,0.00021917,2]
[361916431,1747889440037,-430.0,0.00021917,2]
[361916433,1747889440047,-430.0,0.00021917,2]
[361916435,1747889440057,-679.08,0.00021917,2]
[361916436,1747889440066,-430.0,0.00021917,2]
[361916437,1747889440076,-430.0,0.00021917,2]
[361916438,1747889440085,-756.12,0.00021917,2]
[361916439,1747889440095,-430.0,0.00021917,2]
[361916440,1747889440105,-432.31354147,0.00021917,2]
[361916441,1747889440115,-430.0,0.00021917,2]
[361916442,1747889440125,-308.60394457,0.00021917,2]
[361916443,1747889440135,-430.0,0.00021917,2]
[361916444,1747889440147,-430.0,0.00021917,2]
[361916445,1747889440162,-430.0,0.00021917,2]
[361916446,1747889440171,-430.0,0.00021917,2]
[361916447,1747889440182,-430.0,0.00021917,2]
[361916448,1747889440193,-430.0,0.00021917,2]
[361916449,1747889440203,-288.02611955,0.00021917,2]
[361916450,1747889440213,-430.0,0.00021917,2]
[361916451,1747889440223,-430.0,0.00021917,2]
[361916452,1747889440232,-430.0,0.00021917,2]
[361916453,1747889440242,-241.6558406,0.00021917,2]
[361916454,1747889440251,-430.0,0.00021917,2]
[361916455,1747889440261,-430.0,0.00021917,2]
[361916456,1747889440271,-430.0,0.00021917,2]
[361916457,1747889440280,-430.0,0.00021917,2]
[361916458,1747889440290,-405.46772649,0.00021917,2]
[361916459,1747889440299,-430.0,0.00021917,2]
[361916460,1747889440309,-430.0,0.00021917,2]
[361916463,1747889440328,-430.0,0.00021917,2]
[361916465,1747889440343,-430.0,0.00021917,2]
[361916467,1747889440353,-430.0,0.00021917,2]
[361916469,1747889440370,-430.0,0.00021917,2]
[361916471,1747889440380,-430.0,0.00021917,2]
[361916473,1747889440391,-430.0,0.00021917,2]
[361916475,1747889440401,-430.0,0.00021917,2]
[361916477,1747889440412,-430.0,0.00021917,2]
[361916478,1747889440423,-485.13817833,0.00021917,2]
[361916479,1747889440433,-430.0,0.00021917,2]
[361916480,1747889440443,-504.4613527,0.00021917,2]
[361916481,1747889440454,-430.0,0.00021917,2]
[361916482,1747889440464,-1732.63,0.00021917,2]
[361916483,1747889440478,-430.0,0.00021917,2]
[361916484,1747889440491,-430.0,0.00021917,2]
[361916485,1747889440501,-430.0,0.00021917,2]
[361916486,1747889440511,-430.0,0.00021917,2]
[361916488,1747889440522,-430.0,0.00021917,2]
[361916489,1747889440531,-430.0,0.00021917,2]
[361916491,1747889440542,-430.0,0.00021917,2]
[361916493,1747889440554,-430.0,0.00021917,2]
[361916494,1747889440565,-2005.69,0.00022,2]
[361916495,1747889440575,-9550.0,0.00022,2]
[361916496,1747889440585,-218.0,0.00022,2]
[361916497,1747889440595,-500.0,0.00022054,2]
[361916498,1747889440604,-179.07295669,0.00022091,2]
[361916499,1747889440615,-160.0,0.0002219,2]
[361916500,1747889440625,-307.54884659,0.00022191,2]
[361916501,1747889440634,-473.56,0.00022191,2]
[361916502,1747889440645,-430.0,0.00022191,2]
[361916503,1747889440655,-430.0,0.00022191,2]
[361916504,1747889440665,-446.10195497,0.00022191,2]
[361916505,1747889440674,-436.76371634,0.00022191,2]
[361916506,1747889440684,-430.0,0.00022191,2]
[361916507,1747889440694,-430.0,0.00022191,2]
[361916508,1747889440703,-430.0,0.00022191,2]
[361916509,1747889440714,-430.0,0.00022191,2]
[361916510,1747889440724,-430.0,0.00022191,2]
[361916511,1747889440734,-430.0,0.00022191,2]
[361916512,1747889440744,-430.0,0.00022191,2]
[361916513,1747889440754,-430.0,0.00022191,2]
[361916514,1747889440765,-430.0,0.00022191,2]
[361916515,1747889440775,-430.0,0.00022191,2]
[361916516,1747889440785,-430.0,0.00022191,2]
[361916517,1747889440795,-430.0,0.00022191,2]
[361916518,1747889440805,-430.0,0.00022191,2]
[361916519,1747889440815,-430.0,0.00022191,2]
[361916520,1747889440825,-430.0,0.00022191,2]
[361916521,1747889440835,-430.0,0.00022191,2]
[361916522,1747889440845,-430.0,0.00022191,2]
[361916523,1747889440855,-430.0,0.00022191,2]
[361916524,1747889440865,-430.0,0.00022191,2]
[361916525,1747889440876,-430.0,0.00022191,2]
[361916526,1747889440886,-430.0,0.00022191,2]
[361916527,1747889440896,-430.0,0.00022191,2]
[361916528,1747889440906,-430.0,0.00022191,2]
[361916529,1747889440916,-430.0,0.00022191,2]
[361916530,1747889440927,-430.0,0.00022191,2]
[361916531,1747889440937,-430.0,0.00022191,2]
[361916532,1747889440947,-430.0,0.00022191,2]
[361916533,1747889440957,-430.0,0.00022191,2]
[361916534,1747889440967,-430.0,0.00022191,2]
[361916535,1747889440977,-430.0,0.00022191,2]
[361916536,1747889440986,-514.58,0.00022191,2]
[361916537,1747889440996,-430.0,0.00022191,2]
[361916538,1747889441006,-430.0,0.00022191,2]
[361916539,1747889441015,-430.0,0.00022191,2]
[361916540,1747889441025,-518.34457165,0.00022191,2]
[361916541,1747889441035,-430.0,0.00022191,2]
[361916542,1747889441044,-430.0,0.00022191,2]
[361916543,1747889441054,-430.0,0.00022191,2]
[361916544,1747889441063,-437.84448455,0.00022191,2]
[361916545,1747889441074,-430.0,0.00022191,2]
[361916546,1747889441083,-430.0,0.00022191,2]
[361916547,1747889441092,-430.0,0.00022191,2]
[361916548,1747889441102,-430.0,0.00022191,2]
[361916549,1747889441112,-542.76,0.00022191,2]
[361916550,1747889441123,-430.0,0.00022191,2]
[361916551,1747889441132,-430.0,0.00022191,2]
[361916552,1747889441142,-430.0,0.00022191,2]
[361916553,1747889441154,-430.0,0.00022191,2]
[361916554,1747889441164,-430.0,0.00022191,2]
[361916555,1747889441173,-430.0,0.00022191,2]
[361916556,1747889441183,-430.0,0.00022191,2]
[361916557,1747889441193,-559.36,0.00022191,2]
[361916558,1747889441203,-430.0,0.00022191,2]
[361916559,1747889441213,-430.0,0.00022191,2]
[361916560,1747889441223,-430.0,0.00022191,2]
[361916561,1747889441233,-430.0,0.00022191,2]
[361916562,1747889441243,-430.0,0.00022191,2]
[361916563,1747889441253,-430.0,0.00022191,2]
[361916564,1747889441265,-430.0,0.00022191,2]
[361916565,1747889441275,-430.0,0.00022191,2]
[361916566,1747889441285,-430.0,0.00022191,2]
[361916567,1747889441294,-430.0,0.00022191,2]
[361916568,1747889441304,-18436.43,0.00022191,2]
[361916569,1747889441314,-1264.28,0.00022191,2]
[361916570,1747889441324,-458.35,0.00022191,2]
[361916571,1747889441334,-1172.25,0.00022191,2]
[361916572,1747889441343,-430.0,0.00022191,2]
[361916573,1747889441353,-430.0,0.00022191,2]
[361916574,1747889441362,-430.0,0.00022191,2]
[361916575,1747889441372,-430.0,0.00022191,2]
[361916576,1747889441382,-183.72,0.00022191,2]
[361916577,1747889441391,-430.0,0.00022191,2]
[361916578,1747889441401,-430.0,0.00022191,2]
[361916579,1747889441411,-430.0,0.00022191,2]
[361916580,1747889441420,-581.06,0.00022191,2]
[361916581,1747889441430,-430.0,0.00022191,2]
[361916582,1747889441440,-430.0,0.00022191,2]